bitfinex-derivatives/quotes_SOLF0:USTF0_20251222
["timestamp","ask_amount","ask_price","bid_price","bid_amount"]
[1766435936875,0.00102173,124.65,124.62,10.80038337]
[1766435937381,0.00102173,124.65,124.62,0.05508337]
[1766435940382,0.00102173,124.65,124.62,3.57508337]
[1766435940793,2.4715814,124.69,124.63,3.52]
[1766435941089,5.7415814,124.71,124.63,3.52]
[1766435941283,5.7415814,124.71,124.64,3.52]
[1766435941591,112.3023,124.73,124.63,7.2249]
[1766435941592,5.7415814,124.69,124.63,10.7449]
[1766435941790,0.00289688,124.67,124.65,0.06146137]
[1766435943081,0.00289688,124.67,124.62,7.2255]
[1766435943082,2.47447828,124.67,124.62,3.52]
[1766435943689,2.47447828,124.67,124.62,10.7455]
[1766435943992,0.00289688,124.67,124.62,10.7455]
[1766435944183,0.00289688,124.67,124.63,0.05172542]
[1766435946501,0.00289688,124.67,124.63,3.25172542]
[1766435947392,0.00289688,124.67,124.64,3.2]
[1766435949100,0.00289688,124.67,124.63,0.05172542]
[1766435950198,2.47447828,124.67,124.63,0.05172542]
[1766435951300,5.90447828,124.67,124.63,0.05172542]
[1766435951498,10.6532,124.66,124.6,97.96]
[1766435952098,3.43,124.66,124.6,97.96]
[1766435952595,0.06037094,124.64,124.62,0.05698897]
[1766435954301,0.00037094,124.64,124.62,0.05698897]
[1766435956097,3.43,124.68,124.62,0.05698897]
[1766435956098,3.43,124.71,124.63,3.2]
[1766435957002,0.05441187,124.68,124.66,0.05354385]
[1766435960906,0.00441187,124.68,124.66,0.05354385]
[1766435964714,0.00441187,124.68,124.66,3.25354385]
[1766435965409,2.4715814,124.72,124.67,3.2]
[1766435965712,3.43,124.73,124.67,3.2]
[1766435965911,10.6492,124.73,124.67,10.4226]
[1766435966515,0.05149109,124.71,124.69,0.05608778]
[1766435970920,7.20154608,124.71,124.65,98.23]
[1766435971116,3.34149109,124.71,124.65,98.23]
[1766435971508,0.05149109,124.71,124.66,3.49]
[1766435972008,0.05149109,124.71,124.67,0.05581511]
[1766435973209,0.05149109,124.71,124.67,3.54581511]
[1766435977123,3.48149109,124.71,124.67,0.05581511]
[1766435977511,7.2211,124.7,124.67,0.05581511]
[1766435978922,7.2216,124.69,124.67,0.05581511]
[1766435979321,3.43,124.7,124.64,3.28]
[1766435980224,0.06049581,124.68,124.66,0.05649316]
[1766435980820,0.06049581,124.68,124.63,94.74]
[1766435981412,0.06049581,124.68,124.63,98.02]
[1766435981925,0.06049581,124.68,124.64,0.05335241]
[1766435984127,0.06049581,124.68,124.64,3.33335241]
[1766435985225,0.00049581,124.68,124.64,3.33335241]
[1766435986228,0.00049581,124.68,124.66,3.28]
[1766435987120,0.00049581,124.68,124.66,10.503]
[1766435989326,0.00049581,124.68,124.67,3.28]
[1766435989731,0.00049581,124.68,124.67,10.5026]
[1766435989932,0.00049581,124.68,124.65,3.28]
[1766435990634,0.00049581,124.68,124.65,10.5038]
[1766435990933,0.00049581,124.68,124.65,3.28]
[1766435991434,0.00049581,124.68,124.64,0.05335241]
[1766435994135,0.00049581,124.68,124.64,3.33335241]
[1766435996432,0.00049581,124.68,124.65,3.28]
[1766436000739,0.00049581,124.68,124.64,0.05335241]
[1766436001337,7.2227,124.67,124.64,0.05335241]
[1766436001732,3.43049581,124.68,124.64,0.05335241]
[1766436004839,0.00049581,124.68,124.64,0.05335241]
[1766436010458,7.22259581,124.68,124.64,0.05335241]
[1766436011652,3.42,124.67,124.64,0.00335241]
[1766436011855,3.42,124.66,124.59,3.29]
[1766436012845,0.06120441,124.64,124.61,3.34184516]
[1766436015957,0.00120441,124.64,124.61,3.34184516]
[1766436018056,27.51,124.72,124.61,3.34184516]
[1766436018261,3.42,124.71,124.61,3.29]
[1766436018457,3.42,124.7,124.61,3.29]
[1766436018761,3.42,124.68,124.61,3.29]
[1766436019162,0.05499555,124.66,124.63,0.05126003]
[1766436022666,0.00499555,124.66,124.63,3.34126003]
[1766436024461,3.42,124.74,124.64,3.29]
[1766436024963,7.2192,124.73,124.66,10.5132]
[1766436025162,7.2192,124.73,124.67,3.29]
[1766436025369,0.06049097,124.71,124.69,0.05135154]
[1766436026170,0.06049097,124.71,124.67,3.29]
[1766436026371,0.06049097,124.71,124.65,3.29]
[1766436026372,2.47014006,124.7,124.65,3.29]
[1766436027166,2.47014006,124.7,124.66,0.05102144]
[1766436028268,7.28079097,124.71,124.66,0.05102144]
[1766436028473,9.75093103,124.71,124.66,0.05102144]
[1766436031877,7.28079097,124.71,124.66,0.05102144]
[1766436034977,10.70079097,124.71,124.66,0.05102144]
[1766436038878,13.08114006,124.7,124.66,0.05102144]
[1766436039181,0.06049097,124.71,124.61,3.37]
[1766436039182,5.86014006,124.68,124.61,3.37]
[1766436039681,5.86014006,124.68,124.63,7.2249]
[1766436039981,0.05243194,124.67,124.64,0.05441606]
[1766436041579,0.00243194,124.67,124.64,3.42441606]
[1766436043782,0.00243194,124.67,124.64,10.64861606]
[1766436043978,2.47014006,124.7,124.64,3.42441606]
[1766436044172,2.47014006,124.71,124.64,3.42441606]
[1766436044370,2.47014006,124.71,124.64,3.37]
[1766436044575,2.47014006,124.71,124.66,7.2231]
[1766436045184,0.05847238,124.7,124.67,0.05903241]
[1766436048883,0.05847238,124.7,124.67,7.28153241]
[1766436050487,2.47014006,124.73,124.68,3.37]
[1766436050680,10.6088,124.74,124.68,10.592]
[1766436050681,5.86014006,124.74,124.68,10.592]
[1766436050885,5.86014006,124.74,124.68,3.37]
[1766436051388,5.86014006,124.74,124.68,10.5918]
[1766436051580,0.05050499,124.72,124.7,0.05563418]
[1766436055595,0.00050499,124.72,124.7,3.42563418]
[1766436055787,3.39,124.79,124.71,3.37]
[1766436056093,3.39,124.79,124.73,7.219]
[1766436056896,0.05532619,124.77,124.75,0.06075263]
[1766436057886,5.86014006,124.81,124.75,0.06075263]
[1766436058290,5.86014006,124.79,124.75,0.06075263]
[1766436058490,5.86014006,124.77,124.72,3.37]
[1766436058696,5.86014006,124.77,124.71,7.2199]
[1766436058897,0.05564801,124.75,124.73,0.05794078]
[1766436062487,2.52578807,124.75,124.71,3.37]
[1766436062688,5.91578807,124.75,124.7,94.72]
[1766436063698,5.91578807,124.75,124.71,0.05105998]
[1766436064902,0.05564801,124.75,124.71,0.05105998]
[1766436067406,3.34564801,124.75,124.71,0.05105998]
[1766436071216,5.81578807,124.75,124.71,0.00105998]
[1766436071507,3.29,124.74,124.71,0.00105998]
[1766436076410,3.29,124.73,124.67,7.46584605]
[1766436076611,5.76014006,124.72,124.66,102.16584605]
[1766436077411,0.05743396,124.7,124.68,0.05373671]
[1766436078303,5.81757402,124.7,124.66,94.7]
[1766436079411,5.81757402,124.7,124.67,0.05079892]
[1766436080802,7.2197,124.73,124.67,3.48079892]
[1766436081009,10.5097,124.73,124.67,3.48079892]
[1766436081504,3.29,124.72,124.67,3.48079892]
[1766436081912,0.05196878,124.71,124.67,3.48079892]
[1766436086813,0.05196878,124.71,124.67,10.94664497]
[1766436087407,0.05196878,124.71,124.67,3.48079892]
[1766436091521,0.00196878,124.71,124.67,3.48079892]
[1766436095428,0.00196878,124.71,124.67,10.70329892]
[1766436099428,0.00196878,124.71,124.68,7.222]
[1766436099929,3.3,124.76,124.69,3.28]
[1766436100425,3.3,124.76,124.69,10.74584605]
[1766436100828,3.3,124.76,124.69,17.96714605]
[1766436101032,0.0555479,124.74,124.71,0.05879028]
[1766436114531,0.0555479,124.74,124.71,10.55899028]
[1766436116239,10.5163,124.78,124.71,10.55899028]
[1766436116434,10.5163,124.78,124.72,7.2197]
[1766436117029,3.3,124.77,124.72,7.2197]
[1766436117237,0.05209137,124.76,124.73,0.0569254]
[1766436117932,3.3,124.81,124.75,3.28]
[1766436118133,7.15980179,124.83,124.75,3.28]
[1766436118440,3.3,124.83,124.75,3.28]
[1766436119032,0.05890031,124.8,124.78,0.05138393]
[1766436119233,3.3,124.83,124.78,3.33138393]
[1766436119842,3.3,124.85,124.79,3.28]
[1766436120235,0.05344398,124.83,124.81,0.05851133]
[1766436120628,7.15980179,124.87,124.81,3.33851133]
[1766436120828,3.3,124.87,124.81,3.33851133]
[1766436121036,3.3,124.87,124.81,10.55281133]
[1766436121637,0.06074468,124.85,124.81,3.33851133]
[1766436121837,3.36074468,124.85,124.81,0.05851133]
[1766436122641,3.3,124.84,124.77,105.1764]
[1766436122854,3.3,124.84,124.78,3.28]
[1766436123644,0.05168719,124.82,124.8,0.05895487]
[1766436134155,3.49168719,124.82,124.77,94.68]
[1766436135059,7.2152,124.8,124.78,0.05062636]
[1766436136461,0.05168719,124.82,124.78,0.05062636]
[1766436137158,3.49168719,124.82,124.78,0.05062636]
[1766436137551,7.2146,124.81,124.78,0.05062636]
[1766436137897,3.49168719,124.82,124.78,0.05062636]
[1766436138070,119.57178898,124.82,124.73,94.64]
[1766436138363,3.44,124.81,124.73,94.64]
[1766436138558,3.44,124.85,124.74,3.85980179]
[1766436139155,3.44,124.85,124.78,0.05297586]
[1766436139350,7.2128,124.84,124.78,0.05297586]
[1766436140266,0.050962,124.82,124.78,3.39297586]
[1766436144274,0.050962,124.82,124.78,10.60917586]
[1766436146464,3.44,124.85,124.8,3.34]
[1766436147462,0.0535269,124.84,124.81,0.06063245]
[1766436149671,0.0035269,124.84,124.82,3.34]
[1766436150368,5.9058284,124.87,124.82,3.34]
[1766436150864,5.9058284,124.87,124.82,10.5538]
[1766436150865,2.4658284,124.87,124.82,10.5538]
[1766436151069,98.04,124.89,124.82,10.5538]
[1766436151070,100.5058284,124.89,124.82,10.5538]
[1766436151265,0.05922372,124.87,124.84,0.05325653]
[1766436157565,0.05922372,124.87,124.81,7.2145]
[1766436157566,3.38,124.86,124.8,3.24]
[1766436157765,3.38,124.82,124.75,3.24]
[1766436158174,3.38,124.82,124.76,3.24]
[1766436158375,98.0,124.85,124.76,3.24]
[1766436158570,0.05679996,124.82,124.79,0.05150202]
[1766436172888,0.05679996,124.82,124.79,3.29150202]
[1766436173189,5.8458284,124.87,124.79,3.29150202]
[1766436173393,5.8458284,124.87,124.79,3.24]
[1766436173994,0.0511432,124.84,124.82,0.05249428]
[1766436174287,94.64,124.89,124.82,3.29249428]
[1766436174288,5.8458284,124.89,124.82,3.29249428]
[1766436174684,3.38,124.88,124.82,3.29249428]
[1766436175384,0.05687768,124.86,124.82,3.29249428]
[1766436175689,2.4658284,124.85,124.82,0.05249428]
[1766436181496,5.8458284,124.85,124.82,0.05249428]
[1766436181696,3.38,124.84,124.76,13.2272995]
[1766436181891,3.38,124.82,124.76,3.24]
[1766436182089,2.4658284,124.81,124.76,3.24]
[1766436182301,2.4658284,124.79,124.74,105.0782]
[1766436182494,2.4658284,124.79,124.75,3.24]
[1766436182698,0.06122479,124.78,124.75,3.30050417]
[1766436182905,3.38,124.83,124.76,3.24]
[1766436183099,2.4658284,124.81,124.76,3.24]
[1766436183900,0.05531659,124.8,124.77,0.05490744]
[1766436189302,0.05531659,124.8,124.77,10.75150744]
[1766436189893,2.4658284,124.83,124.77,10.75150744]
[1766436190087,2.4658284,124.83,124.78,7.2161]
[1766436190789,5.8258284,124.83,124.78,7.2161]
[1766436190987,0.06073267,124.82,124.78,7.2161]
[1766436192800,2.52656107,124.82,124.78,7.2161]
[1766436194301,0.06073267,124.82,124.78,7.2161]
[1766436194601,2.52656107,124.82,124.78,7.2161]
[1766436197307,0.06073267,124.82,124.78,7.2161]
[1766436197716,0.06073267,124.82,124.78,10.6961]
[1766436199317,2.4658284,124.86,124.78,3.48]
[1766436199618,5.8258284,124.86,124.78,3.48]
[1766436200219,5.8258284,124.86,124.8,10.6951]
[1766436200414,0.0589441,124.84,124.82,0.05182208]
[1766436200813,5.8258284,124.88,124.82,3.53182208]
[1766436201010,3.36,124.88,124.82,3.53182208]
[1766436201919,0.05055034,124.86,124.82,3.53182208]
[1766436202418,0.05055034,124.86,124.82,10.74572208]
[1766436207714,0.05055034,124.86,124.82,3.53182208]
[1766436209322,0.00055034,124.86,124.82,3.53182208]
[1766436210622,0.00055034,124.86,124.83,7.2132]
[1766436213610,0.00055034,124.86,124.83,10.4432]
[1766436214608,0.00055034,124.86,124.84,3.23]
[1766436217324,108.99001017,124.91,124.85,3.38]
[1766436217523,3.29,124.91,124.85,3.38]
[1766436217723,7.14121017,124.93,124.85,3.38]
[1766436218422,0.02091018,124.9,124.88,0.06091416]
[1766436218933,3.31091018,124.9,124.84,97.98]
[1766436219628,3.31091018,124.9,124.84,105.1923]
[1766436219920,3.31091018,124.9,124.86,0.06145846]
[1766436220122,0.02091018,124.9,124.86,0.06145846]
[1766436220323,0.02091018,124.9,124.86,3.44145846]
[1766436221723,0.02091018,124.9,124.86,10.65305846]
[1766436222723,0.02091018,124.9,124.87,7.211]
[1766436223124,0.02091018,124.9,124.87,10.591]
[1766436223331,3.29,124.94,124.87,3.38]
[1766436223529,3.29,124.94,124.88,10.5905]
[1766436224227,0.05171526,124.92,124.9,0.06070432]
[1766436230349,3.29,124.9,124.84,3.38]
[1766436230637,3.29,124.81,124.71,3.38]
[1766436230836,3.85121017,124.78,124.71,3.38]
[1766436231027,7.14121017,124.76,124.66,3.38]
[1766436231232,7.14121017,124.76,124.7,0.00217543]
[1766436231233,7.20021531,124.72,124.7,0.00217543]
[1766436231434,7.20021531,124.72,124.66,3.38]
[1766436232442,7.20021531,124.72,124.68,0.05325648]
[1766436232736,0.05900514,124.72,124.68,3.43325648]
[1766436232949,3.29,124.75,124.68,3.43325648]
[1766436234047,0.05652936,124.73,124.68,3.43325648]
[1766436234347,0.05652936,124.73,124.68,10.65495648]
[1766436234540,0.05652936,124.73,124.69,3.38]
[1766436241064,0.05652936,124.73,124.69,10.6012]
[1766436241362,3.29,124.77,124.69,3.38]
[1766436242254,3.29,124.77,124.67,7.2223]
[1766436242255,3.34305005,124.74,124.72,0.0031398]
[1766436242453,3.34305005,124.74,124.67,10.6023]
[1766436243364,3.34305005,124.74,124.69,0.05404135]
[1766436250062,0.05305005,124.74,124.69,3.31404135]
[1766436250471,0.05305005,124.74,124.71,7.2201]
[1766436250766,3.49,124.78,124.72,3.26]
[1766436251557,3.49,124.78,124.72,10.4795]
[1766436251862,0.05834916,124.76,124.74,0.0560712]
[1766436255670,96.33604375,125.57,124.75,3.26]
[1766436255671,27.58,124.85,124.75,3.26]
[1766436255965,3.49,124.84,124.75,3.26]
[1766436256270,3.49,124.82,124.75,10.4775]
[1766436256668,7.34121017,124.84,124.77,3.31809149]
[1766436256972,7.34121017,124.84,124.79,0.05479273]
[1766436257279,3.49,124.84,124.79,0.05479273]
[1766436258872,3.49,124.86,124.79,3.31479273]
[1766436259367,11.06211017,124.88,124.8,3.26]
[1766436259368,3.49,124.88,124.8,3.26]
[1766436259575,3.49,124.88,124.83,0.05660551]
[1766436262273,3.49,124.87,124.79,7.2154]
[1766436262465,3.49,124.87,124.79,10.4754]
[1766436263378,0.05660551,124.84,124.82,0.05141606]
[1766436264868,94.68,124.9,124.82,3.31141606]
[1766436265073,94.68,124.9,124.82,3.26]
[1766436265273,3.49,124.91,124.83,3.26]
[1766436265475,3.49,124.91,124.84,10.4725]
[1766436265877,3.49,124.91,124.86,0.054626]
[1766436267977,3.49,124.9,124.86,0.004626]
[1766436268177,3.49,124.9,124.81,3.26]
[1766436268571,3.49,124.87,124.77,3.26]
[1766436269287,0.054626,124.83,124.81,0.06057497]
[1766436269678,0.054626,124.83,124.77,3.26]
[1766436270088,0.054626,124.83,124.78,3.26]
[1766436270784,0.054626,124.83,124.79,0.05785887]
[1766436271575,0.054626,124.83,124.79,7.27335887]
[1766436271772,0.054626,124.83,124.79,0.05785887]
[1766436274983,0.054626,124.83,124.8,3.26]
[1766436274984,0.004626,124.83,124.8,3.26]
[1766436275186,0.004626,124.83,124.8,10.4749]
[1766436279091,0.004626,124.83,124.8,3.26]
[1766436279493,0.004626,124.83,124.79,7.27335887]
[1766436279685,0.004626,124.83,124.79,10.66335887]
[1766436280690,0.004626,124.83,124.79,3.44785887]
[1766436281598,3.254626,124.83,124.79,0.05785887]
[1766436284204,10.468026,124.83,124.79,0.05785887]
[1766436284389,5.7165445,124.82,124.76,3.39]
[1766436285294,0.05446031,124.8,124.78,0.05270337]
[1766436289899,10.4628,124.84,124.78,3.44270337]
[1766436290199,3.25,124.84,124.78,3.44270337]
[1766436290792,10.464,124.82,124.78,0.05270337]
[1766436290993,10.464,124.82,124.79,0.0002725]
[1766436290994,0.05358185,124.81,124.79,0.0002725]
[1766436297208,3.25,124.85,124.79,3.3902725]
[1766436297914,3.25,124.87,124.79,3.3902725]
[1766436298095,0.05690546,124.84,124.82,0.0591354]
[1766436302110,3.30690546,124.84,124.78,10.6058]
[1766436302303,3.25,124.84,124.78,10.6058]
[1766436302605,10.4618,124.86,124.79,3.39]
[1766436302796,10.4624,124.85,124.79,3.39]
[1766436303001,3.31060039,124.83,124.77,10.6063]
[1766436303195,3.31060039,124.83,124.77,3.39]
[1766436303395,10.52400039,124.83,124.77,3.39]
[1766436304102,10.52400039,124.83,124.79,0.05904822]
[1766436304500,10.52400039,124.83,124.74,7.2181]
[1766436304501,3.25,124.81,124.74,7.2181]
[1766436305102,3.25,124.8,124.73,3.39]
[1766436305304,3.25,124.8,124.69,3.39]
[1766436305605,0.05247566,124.76,124.73,0.05210428]
[1766436305905,0.05186009,124.76,124.73,0.05250663]
[1766436306217,3.57186009,124.76,124.73,0.00250663]
[1766436308713,0.05186009,124.76,124.73,0.00250663]
[1766436309511,3.52,124.82,124.73,3.43250663]
[1766436309709,3.52,124.82,124.73,3.43]
[1766436309909,3.52,124.81,124.74,7.2185]
[1766436310110,3.52,124.81,124.74,10.6485]
[1766436310311,3.52,124.81,124.71,3.43]
[1766436310513,0.059975,124.77,124.75,0.05325563]
[1766436310816,0.05865089,124.77,124.75,0.06072307]
[1766436311022,0.05865089,124.77,124.68,112.3392]
[1766436311023,3.57865089,124.77,124.68,3.43]
[1766436311318,3.52,124.77,124.68,3.43]
[1766436312212,0.05417892,124.74,124.71,0.05046795]
[1766436312517,10.12556803,124.8,124.71,3.48046795]
[1766436312716,17.34116803,124.8,124.72,10.6495]
[1766436313106,112.2044,124.84,124.72,3.43]
[1766436313107,3.52,124.83,124.72,3.43]
[1766436313307,3.52,124.82,124.74,10.6485]
[1766436313519,0.05951014,124.79,124.77,0.05693312]
[1766436315137,0.05951014,124.79,124.72,7.2194]
[1766436315422,3.57951014,124.79,124.72,10.6494]
[1766436316223,0.05951014,124.79,124.74,3.48892082]
[1766436316416,0.05096146,124.78,124.74,3.48892082]
[1766436316615,3.52,124.82,124.75,3.48255695]
[1766436316815,3.52,124.84,124.76,3.43]
[1766436317725,0.0554712,124.81,124.79,0.05666776]
[1766436324215,3.52,124.84,124.79,0.05666776]
[1766436324422,10.7305,124.88,124.79,3.48666776]
[1766436324622,3.52,124.87,124.79,3.43]
[1766436324823,3.52,124.88,124.8,3.43]
[1766436325429,0.06038265,124.85,124.83,0.05244404]
[1766436325833,0.06038265,124.85,124.83,0.00244404]
[1766436327234,3.52,124.89,124.83,3.43244404]
[1766436328334,0.05820144,124.87,124.83,3.43244404]
[1766436328533,0.05820144,124.87,124.83,0.00244404]
[1766436331030,0.05820144,124.87,124.83,10.73544404]
[1766436333231,10.5788,124.91,124.83,10.73544404]
[1766436333232,105.218,124.93,124.84,3.52]
[1766436334037,105.218,124.93,124.84,10.7323]
[1766436334038,3.37,124.92,124.84,10.7323]
[1766436334238,0.05051652,124.89,124.87,0.06046601]
[1766436335728,0.05051652,124.89,124.87,0.00046601]
[1766436336227,0.00051652,124.89,124.87,0.00046601]
[1766436341137,94.64,124.93,124.87,0.00046601]
[1766436341844,3.35,124.94,124.87,0.00046601]
[1766436342044,3.35,124.94,124.87,7.21146601]
[1766436342245,0.00075601,124.92,124.88,3.38]
[1766436342548,3.35,124.98,124.9,3.38]
[1766436343141,3.35,124.98,124.9,10.5888]
[1766436343342,0.0587211,124.95,124.93,0.05797728]
[1766436344046,0.0587211,124.95,124.88,7.21]
[1766436344047,3.4087211,124.95,124.88,101.81]
[1766436345150,3.4087211,124.95,124.9,0.06009719]
[1766436346650,10.6152211,124.95,124.9,0.06009719]
[1766436347350,3.4087211,124.95,124.9,0.06009719]
[1766436349248,3.35,124.94,124.9,9.719e-05]
[1766436358653,0.0587211,124.95,124.9,9.719e-05]
[1766436359361,3.4087211,124.95,124.9,9.719e-05]
[1766436359861,3.4087211,124.95,124.9,7.20929719]
[1766436360158,3.4087211,124.95,124.9,10.58929719]
[1766436360159,0.0587211,124.95,124.9,10.58929719]
[1766436361266,3.35,125.0,124.92,3.38]
[1766436361462,3.35,125.0,124.92,97.94]
[1766436362265,0.05770765,124.97,124.95,0.05854875]
[1766436362764,3.35,125.01,124.95,0.05854875]
[1766436363659,0.05201164,124.99,124.95,7.26484875]
[1766436364365,3.40201164,124.99,124.95,7.26484875]
[1766436364661,0.05201164,124.99,124.96,7.2057]
[1766436366770,3.35,125.01,124.96,7.2057]
[1766436366966,3.43,125.04,124.97,3.32]
[1766436367166,3.43,125.06,124.99,3.32]
[1766436367369,4.49161513,125.07,124.99,3.32]
[1766436367568,4.49161513,125.07,125.0,3.32]
[1766436367874,4.49161513,125.07,124.99,112.0618]
[1766436367875,0.04646452,125.05,125.02,0.05704397]
[1766436368276,3.47646452,125.05,124.99,94.54]
[1766436368573,3.47646452,125.05,124.98,3.32]
[1766436368772,3.47646452,125.05,124.98,94.54]
[1766436369170,3.47646452,125.05,125.0,0.0512525]
[1766436369375,0.04646452,125.05,125.0,0.0512525]
[1766436369561,0.04646452,125.05,125.0,3.3712525]
[1766436369761,4.49161513,125.07,125.0,3.3712525]
[1766436369963,7.92161513,125.07,125.0,3.3712525]
[1766436370162,3.43,125.06,125.0,0.0512525]
[1766436370675,0.05704397,125.04,125.0,10.5746525]
[1766436370976,0.05704397,125.04,125.0,3.3712525]
[1766436371176,3.43,125.06,125.0,3.3712525]
[1766436371589,3.43,125.06,125.0,0.0512525]
[1766436372586,3.48,125.04,125.0,0.0012525]
[1766436372971,3.43,125.02,125.0,0.0012525]
[1766436373481,0.05,125.04,125.0,0.0012525]
[1766436374571,0.05,125.04,125.0,3.3212525]
[1766436375587,0.05,125.04,125.0,105.0246525]
[1766436376172,0.05,125.04,125.0,97.8212525]
[1766436376679,7.92161513,125.07,125.0,97.8212525]
[1766436376888,4.49161513,125.07,125.01,3.32]
[1766436377584,4.49161513,125.07,125.03,7.2017]
[1766436377890,4.49161513,125.07,125.04,0.05884359]
[1766436378292,3.43,125.09,125.04,0.05884359]
[1766436378879,3.43,125.13,125.05,97.82]
[1766436379097,3.43,125.13,125.08,0.0507456]
[1766436379393,3.43,125.13,125.08,0.0007456]
[1766436380284,3.43,125.11,125.03,3.32]
[1766436381386,3.43,125.11,125.02,94.5]
[1766436381387,0.0007456,125.08,125.06,3.37413961]
[1766436381593,3.43,125.16,125.06,3.32]
[1766436382095,3.43,125.16,125.08,7.1987]
[1766436382393,3.43,125.16,125.08,3.32]
[1766436382593,3.48717688,125.13,125.06,3.32]
[1766436382788,3.48717688,125.13,125.07,7.1991]
[1766436382991,3.43,125.18,125.08,3.32]
[1766436383294,3.43,125.17,125.08,3.32]
[1766436383994,3.43,125.17,125.11,0.05993739]
[1766436386490,3.43,125.2,125.12,3.32]
[1766436386696,3.43,125.2,125.15,0.0553426]
[1766436387977,3.43,125.2,125.09,115.2883]
[1766436388186,3.43,125.18,125.11,3.32]
[1766436388880,122.56587266,125.21,125.09,97.76]
[1766436388881,3.43,125.17,125.09,97.76]
[1766436389085,0.05410182,125.14,125.12,0.00024885]
[1766436390997,0.05410182,125.14,125.06,7.1997]
[1766436390998,3.54410182,125.14,125.06,10.5097]
[1766436391185,3.49,125.14,125.06,10.5097]
[1766436392096,0.06149861,125.11,125.09,0.05867728]
[1766436395207,6.5730374,125.16,125.09,3.36867728]
[1766436395390,10.0630374,125.16,125.09,3.36867728]
[1766436395595,3.49,125.15,125.09,0.05867728]
[1766436396203,0.00409284,125.13,125.09,3.58867728]
[1766436396391,3.32,125.18,125.09,3.53]
[1766436397402,3.32,125.18,125.12,0.05782812]
[1766436398399,10.5132,125.18,125.12,0.05782812]
[1766436398600,3.32,125.17,125.12,0.05782812]
[1766436399693,10.5138,125.17,125.12,0.05782812]
[1766436401105,3.32,125.15,125.06,3.53]
[1766436401603,3.32,125.15,125.04,94.42]
[1766436401604,3.32,125.13,125.04,94.42]
[1766436401789,3.32,125.13,125.04,97.95]
[1766436401993,0.05782812,125.1,125.07,0.05463503]
[1766436404506,3.32,125.13,125.07,0.05463503]
[1766436404900,3.32,125.13,125.07,7.25413503]
[1766436405097,3.32,125.16,125.07,3.58463503]
[1766436405299,3.32,125.19,125.1,3.53]
[1766436405710,3.32,125.18,125.11,7.1971]
[1766436406207,3.32,125.18,125.12,7.1964]
[1766436406595,0.05290709,125.16,125.14,0.0525272]
[1766436409108,3.37290709,125.16,125.14,0.0025272]
[1766436409307,3.37290709,125.16,125.09,94.42]
[1766436409808,3.37290709,125.16,125.1,7.1977]
[1766436410406,3.37290709,125.16,125.12,0.05055454]
[1766436410900,3.37290709,125.16,125.12,0.00055454]
[1766436414716,10.56750709,125.16,125.12,0.00055454]
[1766436415114,3.32,125.14,125.08,3.53]
[1766436416217,0.0601124,125.12,125.1,0.05660692]
[1766436419715,10.5149,125.16,125.1,0.05660692]
[1766436420020,9.8930374,125.19,125.1,3.58660692]
[1766436420209,3.32,125.19,125.1,3.53]
[1766436420414,3.32,125.18,125.1,3.53]
[1766436420820,0.05692819,125.15,125.13,0.06018226]
[1766436421218,7.192,125.21,125.13,3.59018226]
[1766436421423,3.32,125.2,125.13,3.53]
[1766436421723,10.5122,125.2,125.13,3.53]
[1766436421928,3.32,125.19,125.13,3.53]
[1766436422312,0.04444288,125.17,125.15,0.05773041]
[1766436423423,0.04444288,125.17,125.12,7.1965]
[1766436424424,0.04444288,125.17,125.13,0.05843894]
[1766436425527,0.04444288,125.17,125.13,7.25433894]
[1766436426429,0.04444288,125.17,125.13,0.05843894]
[1766436429034,3.30444288,125.17,125.13,0.05843894]
[1766436429828,3.30444288,125.17,125.11,94.4]
[1766436429829,3.26,125.15,125.08,10.4884]
[1766436430030,3.26,125.15,125.08,104.8684]
[1766436430740,10.4549,125.15,125.08,104.8684]
[1766436431040,0.0545331,125.13,125.1,0.05604359]